{"text_format":"1","workbook":"xlsx","n_sheets":4,"sheets":["EM Spielplan","Fair-Play-Wertung","UEFA-Rangliste","Zuordnung Gruppendritte"],"not_rendered":{"charts":0,"images":14,"macros":1,"external_links":0,"defined_names":0,"comments":0,"pivot_tables":0},"unopened":[],"bounds":{"document_bytes":16777216,"sheet_cells":100000,"rows_first":2000,"rows_last":500,"rows_between":2000,"halvings":0,"cell_chars":16384,"cell_head_chars":4096},"cells_cut":0,"cells_raw":0,"read":"row_number_cap","date_system":"1900"}

{"sheet":"EM Spielplan","index":0,"n_rows":77,"n_cols":26,"rows_kept":77,"cut":false,"hidden":false,"merged":[[32,1,32,2],[32,4,32,5],[32,7,32,8],[32,10,32,11],[32,13,32,14],[32,16,32,17],[20,1,20,2],[34,19,34,20],[28,13,28,14],[28,16,28,17],[24,1,24,2],[24,4,24,5],[24,7,24,8],[24,10,24,11],[24,13,24,14],[24,16,24,17],[28,4,28,5],[28,1,28,2],[27,19,31,23],[22,19,22,23],[23,19,23,23],[24,19,24,23],[28,7,28,8],[28,10,28,11],[6,7,6,8],[6,10,6,11],[6,13,6,14],[6,16,6,17],[20,7,20,8],[20,10,20,11],[20,13,20,14],[20,16,20,17],[16,1,16,2],[16,4,16,5],[16,7,16,8],[16,10,16,11],[16,13,16,14],[16,16,16,17],[20,4,20,5],[0,1,0,23],[7,1,7,2],[7,4,7,5],[7,7,7,8],[7,10,7,11],[7,13,7,14],[7,16,7,17],[12,1,12,2],[12,4,12,5],[12,7,12,8],[12,10,12,11],[12,13,12,14],[12,16,12,17],[8,1,8,2],[8,4,8,5],[8,7,8,8],[8,10,8,11],[8,13,8,14],[8,16,8,17],[7,19,7,23],[1,19,5,23],[9,19,19,23],[6,1,6,2],[6,4,6,5],[35,19,35,20],[35,22,35,23],[36,1,36,2],[36,4,36,5],[36,7,36,8],[36,10,36,11],[36,13,36,14],[36,16,36,17],[36,19,36,20],[36,22,36,23],[35,1,35,2],[35,4,35,5],[35,7,35,8],[35,10,35,11],[35,13,35,14],[35,16,35,17],[37,19,37,20],[37,22,37,23],[38,1,38,2],[38,4,38,5],[38,7,38,8],[38,10,38,11],[38,13,38,14],[38,16,38,17],[38,19,38,20],[37,1,37,2],[37,4,37,5],[37,7,37,8],[37,10,37,11],[37,13,37,14],[37,16,37,17],[76,1,76,3],[41,22,41,23],[67,11,67,13],[68,11,68,13],[50,2,50,4],[50,8,50,10],[50,14,50,16],[42,10,42,11],[42,1,42,2],[42,4,42,5],[57,5,57,7],[57,17,57,19],[58,5,58,7],[58,17,58,19],[75,20,75,23],[76,20,76,23],[47,1,47,2],[47,4,47,5],[55,2,55,4],[55,8,55,10],[55,14,55,16],[55,20,55,22],[47,22,47,23],[49,14,49,16],[39,1,39,2],[39,4,39,5],[39,7,39,8],[39,10,39,11],[39,13,39,14],[39,16,39,17],[42,22,42,23],[41,1,41,2],[39,19,39,20],[41,13,41,14],[41,7,41,8],[41,16,41,17],[41,10,41,11],[41,4,41,5],[41,19,41,20],[42,7,42,8],[42,16,42,17],[42,19,42,20],[42,13,42,14],[49,20,49,22],[49,2,49,4],[49,8,49,10],[63,5,63,7],[63,17,63,19],[73,11,73,13],[47,7,47,8],[47,10,47,11],[47,13,47,14],[47,16,47,17],[47,19,47,20],[50,20,50,22]],"read":"row_number_cap"}
[null,"EM 2020/21 - Spielplan   Version 1.13"]
[null,null,"Pkt.       Tore",null,null,"Pkt.       Tore",null,null,"Pkt.       Tore",null,null,"Pkt.       Tore",null,null,"Pkt.       Tore",null,null,"Pkt.       Tore",null,"Dieser Spielplan ermittelt automatisch, welche Gruppendritten sich qualifiziert haben und welchem Gegner sie im Achtelfinale zugeordnet werden.\nDie Zuordnungstabelle der UEFA ist auf dem Excel-Sheet \"Zuordnung Gruppendritte\" dargestellt."]
[null,"Italien"," 0        0 : 0",null,"Belgien"," 0        0 : 0",null,"Ukraine"," 0        0 : 0",null,"England"," 0        0 : 0",null,"Spanien"," 0        0 : 0",null,"Deutschland"," 0        0 : 0"]
[null,"Schweiz"," 0        0 : 0",null,"Russland"," 0        0 : 0",null,"Niederlande"," 0        0 : 0",null,"Kroatien"," 0        0 : 0",null,"Polen"," 0        0 : 0",null,"Frankreich"," 0        0 : 0"]
[null,"Türkei"," 0        0 : 0",null,"Dänemark"," 0        0 : 0",null,"Österreich"," 0        0 : 0",null,"Tschechien"," 0        0 : 0",null,"Schweden"," 0        0 : 0",null,"Portugal"," 0        0 : 0"]
[null,"Wales"," 0        0 : 0",null,"Finnland"," 0        0 : 0",null,"Nordmazedon."," 0        0 : 0",null,"Schottland"," 0        0 : 0",null,"Slowakei"," 0        0 : 0",null,"Ungarn"," 0        0 : 0"]
[null,"•",null,null,"•",null,null,"•",null,null,"•",null,null,"•",null,null,"•"]
[null,"Gruppe A",null,null,"Gruppe B",null,null,"Gruppe C",null,null,"Gruppe D",null,null,"Gruppe E",null,null,"Gruppe F",null,null,"Qualifikation zum Achtelfinale"]
[null,"Rom",null,null,"Kopenhagen",null,null,"Bukarest",null,null,"London",null,null,"St. Petersburg",null,null,"Budapest"]
[null,"2021-06-11","21:00:00",null,"2021-06-12","18:00:00",null,"2021-06-13","18:00:00",null,"2021-06-13","15:00:00",null,"2021-06-14","18:00:00",null,"2021-06-15","18:00:00",null,"Kriterien für die Platzierung innerhalb der Gruppen:\n  1.  Punkte aus allen Gruppenspielen\n  2.  Punkte der direkten Begegnungen\n  3.  Tordifferenz aus den Direkt-Begegnungen\n  4.  Anzahl der in den Direkt-Begegnungen erzielten Tore\n  5.  Nochmalige Anwendung der Krit. 2 - 4 nur auf die Mann-\n        schaften, die beim 1. Durchlauf nicht unterscheidbar waren\n  6.  Tordifferenz aus allen Gruppenspielen\n  7.  Anzahl der erzielten Tore aus allen Gruppenspielen\n  8.  Anzahl der Siege aus allen Gruppenspielen\n  9.  Fair-Play-Wertung bzw. Elfmeterschießen im letzten\n        Gruppenspiel, wenn die Bedingungen dafür zutreffen\n10.  UEFA Schlussrangliste der European Qualifiers"]
[null,"Türkei","Italien",null,"Dänemark","Finnland",null,"Österreich","Nordmazedon.",null,"England","Kroatien",null,"Polen","Slowakei",null,"Ungarn","Portugal"]
[]
[null,"Baku",null,null,"St. Petersburg",null,null,"Amsterdam",null,null,"Glasgow",null,null,"Sevilla",null,null,"München"]
[null,"2021-06-12","15:00:00",null,"2021-06-12","21:00:00",null,"2021-06-13","21:00:00",null,"2021-06-14","15:00:00",null,"2021-06-14","21:00:00",null,"2021-06-15","21:00:00"]
[null,"Wales","Schweiz",null,"Belgien","Russland",null,"Niederlande","Ukraine",null,"Schottland","Tschechien",null,"Spanien","Schweden",null,"Frankreich","Deutschland"]
[]
[null,"Baku",null,null,"St. Petersburg",null,null,"Bukarest",null,null,"Glasgow",null,null,"St. Petersburg",null,null,"Budapest"]
[null,"2021-06-16","18:00:00",null,"2021-06-16","15:00:00",null,"2021-06-17","15:00:00",null,"2021-06-18","18:00:00",null,"2021-06-18","15:00:00",null,"2021-06-19","15:00:00"]
[null,"Türkei","Wales",null,"Finnland","Russland",null,"Ukraine","Nordmazedon.",null,"Kroatien","Tschechien",null,"Schweden","Slowakei",null,"Ungarn","Frankreich"]
[]
[null,"Rom",null,null,"Kopenhagen",null,null,"Amsterdam",null,null,"London",null,null,"Sevilla",null,null,"München"]
[null,"2021-06-16","21:00:00",null,"2021-06-17","18:00:00",null,"2021-06-17","21:00:00",null,"2021-06-18","21:00:00",null,"2021-06-19","21:00:00",null,"2021-06-19","18:00:00"]
[null,"Italien","Schweiz",null,"Dänemark","Belgien",null,"Niederlande","Österreich",null,"England","Schottland",null,"Spanien","Polen",null,"Portugal","Deutschland"]
[]
[null,"Baku",null,null,"Kopenhagen",null,null,"Amsterdam",null,null,"Glasgow",null,null,"Sevilla",null,null,"München"]
[null,"2021-06-20","18:00:00",null,"2021-06-21","21:00:00",null,"2021-06-21","18:00:00",null,"2021-06-22","21:00:00",null,"2021-06-23","18:00:00",null,"2021-06-23","21:00:00"]
[null,"Schweiz","Türkei",null,"Russland","Dänemark",null,"Nordmazedon.","Niederlande",null,"Kroatien","Schottland",null,"Slowakei","Spanien",null,"Deutschland","Ungarn"]
[null,null,null,null,null,null,null,null,null,null,null,null,null,null,null,null,null,null,null,"Roter Punkt •  heißt: Platzierung in der Gruppe nicht eindeutig!\nIn diesem Fall müssen für die punktgleichen Mannschaften die \nFair-Play-Werte eingetragen werden.\n(Siehe Excel-Sheet \"Fair-Play-Wertung\")\nAlternativ können die Schlusstabellen auch manuell verändert werden (auf \"Schlusstabelle manuell\" klicken, dann eintragen)."]
[null,"Rom",null,null,"St. Petersburg",null,null,"Bukarest",null,null,"London",null,null,"St. Petersburg",null,null,"Budapest"]
[null,"2021-06-20","18:00:00",null,"2021-06-21","21:00:00",null,"2021-06-21","18:00:00",null,"2021-06-22","21:00:00",null,"2021-06-23","18:00:00",null,"2021-06-23","21:00:00"]
[null,"Italien","Wales",null,"Finnland","Belgien",null,"Ukraine","Österreich",null,"Tschechien","England",null,"Schweden","Polen",null,"Portugal","Frankreich"]
[]
[null,"Elfmeterschießen:",null,null,"Elfmeterschießen:",null,null,"Elfmeterschießen:",null,null,"Elfmeterschießen:",null,null,"Elfmeterschießen:",null,null,"Elfmeterschießen:"]
[]
[null,null,null,null,null,null,null,null,null,null,null,null,null,null,null,null,null,null,null,"•"]
[null,"Schlusstabelle",null,null,"Schlusstabelle",null,null,"Schlusstabelle",null,null,"Schlusstabelle",null,null,"Schlusstabelle",null,null,"Schlusstabelle",null,null,"Gruppendritte",null,"Grp","Gruppenkombination:"]
["1A",null,null,"1B",null,null,"1C",null,null,"1D",null,null,"1E",null,null,"1F",null,null,"1.",null,null,null,null,null,null,true]
["2A",null,null,"2B",null,null,"2C",null,null,"2D",null,null,"2E",null,null,"2F",null,null,"2.",null,null,null,"Nicht qualifiziert:",null,null,true]
["3A",null,null,"3B",null,null,"3C",null,null,"3D",null,null,"3E",null,null,"3F",null,null,"3.",null,null,null,null,null,null,true]
["4A",null,null,"4B",null,null,"4C",null,null,"4D",null,null,"4E",null,null,"4F",null,null,"4.",null,null,null,null,null,null,true]
[null,null,null,null,null,null,null,null,null,null,null,null,null,null,null,null,null,null,null,null,null,null,null,null,null,true]
[null,"Achtelfinale 5",null,null,"Achtelfinale 6",null,null,"Achtelfinale 2",null,null,"Achtelfinale 4",null,null,"Achtelfinale 1",null,null,"Achtelfinale 3",null,null,"Achtelfinale 7",null,null,"Achtelfinale 8",null,null,true]
[null,"Kopenhagen","16 Uhr",null,"Bukarest",null,null,"London","16 Uhr",null,"Sevilla",null,null,"Amsterdam","16 Uhr",null,"Budapest",null,null,"London","16 Uhr",null,"Glasgow",null,null,true]
[null,"2021-06-28","18:00:00",null,"2021-06-28","21:00:00",null,"2021-06-26","21:00:00",null,"2021-06-27","21:00:00",null,"2021-06-26","18:00:00",null,"2021-06-27","18:00:00",null,"2021-06-29","18:00:00",null,"2021-06-29","21:00:00"]
[null,{"$f":"IF(K38<>\"\",K38,\"\")","v":""},{"$f":"IF(N38<>\"\",N38,\"\")","v":""},null,{"$f":"IF(Q37<>\"\",Q37,\"\")","v":""},null,null,{"$f":"IF(B37<>\"\",B37,\"\")","v":""},{"$f":"IF(H38<>\"\",H38,\"\")","v":""},null,{"$f":"IF(E37<>\"\",E37,\"\")","v":""},null,null,{"$f":"IF(B38<>\"\",B38,\"\")","v":""},{"$f":"IF(E38<>\"\",E38,\"\")","v":""},null,{"$f":"IF(H37<>\"\",H37,\"\")","v":""},null,null,{"$f":"IF(K37<>\"\",K37,\"\")","v":""},{"$f":"IF(Q38<>\"\",Q38,\"\")","v":""},null,{"$f":"IF(N37<>\"\",N37,\"\")","v":""}]
[]
[null,"2D","2E",null,"1F","3A/B/C",null,"1A","2C",null,"1B","3A/D/E/F",null,"2A","2B",null,"1C","3D/E/F",null,"1D","2F",null,"1E","3A/B/C/D"]
[null,{"$f":"IF(AND(B46<>\"\",C46<>\"\",B46=C46),\"Unzulässiges Ergebnis\",\"\")","v":""},null,null,{"$f":"IF(AND(E46<>\"\",F46<>\"\",E46=F46),\"Unzulässiges Ergebnis\",\"\")","v":""},null,null,{"$f":"IF(AND(H46<>\"\",I46<>\"\",H46=I46),\"Unzulässiges Ergebnis\",\"\")","v":""},null,null,{"$f":"IF(AND(K46<>\"\",L46<>\"\",K46=L46),\"Unzulässiges Ergebnis\",\"\")","v":""},null,null,{"$f":"IF(AND(N46<>\"\",O46<>\"\",N46=O46),\"Unzulässiges Ergebnis\",\"\")","v":""},null,null,{"$f":"IF(AND(Q46<>\"\",R46<>\"\",Q46=R46),\"Unzulässiges Ergebnis\",\"\")","v":""},null,null,{"$f":"IF(AND(T46<>\"\",U46<>\"\",T46=U46),\"Unzulässiges Ergebnis\",\"\")","v":""},null,null,{"$f":"IF(AND(W46<>\"\",X46<>\"\",W46=X46),\"Unzulässiges Ergebnis\",\"\")","v":""}]
[]
[null,null,"Viertelfinale 1",null,null,null,null,null,"Viertelfinale 2",null,null,null,null,null,"Viertelfinale 3",null,null,null,null,null,"Viertelfinale 4"]
[null,null,"St. Petersburg",null,null,null,null,null,"München",null,null,null,null,null,"Baku",null,null,null,null,null,"Rom"]
[null,null,"2021-07-02",null,"18:00:00",null,null,null,"2021-07-02",null,"21:00:00",null,null,null,"2021-07-03",null,"18:00:00",null,null,null,"2021-07-03",null,"21:00:00"]
[null,null,{"$f":"IF(OR(B46=\"\",C46=\"\",B46=C46),\"\",IF(B46>C46,B45,C45))","v":""},null,{"$f":"IF(OR(E46=\"\",F46=\"\",E46=F46),\"\",IF(E46>F46,E45,F45))","v":""},null,null,null,{"$f":"IF(OR(H46=\"\",I46=\"\",H46=I46),\"\",IF(H46>I46,H45,I45))","v":""},null,{"$f":"IF(OR(K46=\"\",L46=\"\",K46=L46),\"\",IF(K46>L46,K45,L45))","v":""},null,null,null,{"$f":"IF(OR(N46=\"\",O46=\"\",N46=O46),\"\",IF(N46>O46,N45,O45))","v":""},null,{"$f":"IF(OR(Q46=\"\",R46=\"\",Q46=R46),\"\",IF(Q46>R46,Q45,R45))","v":""},null,null,null,{"$f":"IF(OR(T46=\"\",U46=\"\",T46=U46),\"\",IF(T46>U46,T45,U45))","v":""},null,{"$f":"IF(OR(W46=\"\",X46=\"\",W46=X46),\"\",IF(W46>X46,W45,X45))","v":""}]
[]
[null,null,"Sieger AF5",null,"Sieger AF6",null,null,null,"Sieger AF2",null,"Sieger AF4",null,null,null,"Sieger AF1",null,"Sieger AF3",null,null,null,"Sieger AF7",null,"Sieger AF8"]
[null,null,{"$f":"IF(AND(C54<>\"\",E54<>\"\",C54=E54),\"Unzulässiges Ergebnis\",\"\")","v":""},null,null,null,null,null,{"$f":"IF(AND(I54<>\"\",K54<>\"\",I54=K54),\"Unzulässiges Ergebnis\",\"\")","v":""},null,null,null,null,null,{"$f":"IF(AND(O54<>\"\",Q54<>\"\",O54=Q54),\"Unzulässiges Ergebnis\",\"\")","v":""},null,null,null,null,null,{"$f":"IF(AND(U54<>\"\",W54<>\"\",U54=W54),\"Unzulässiges Ergebnis\",\"\")","v":""}]
[]
[null,null,null,null,null,"Halbfinale 1",null,null,null,null,null,null,null,null,null,null,null,"Halbfinale 2"]
[null,null,null,null,null,"London",null,null,null,null,null,null,null,null,null,null,null,"London"]
[null,null,null,null,null,"2021-07-06",null,"21:00:00",null,null,null,null,null,null,null,null,null,"2021-07-07",null,"21:00:00"]
[null,null,null,null,null,{"$f":"IF(OR(C54=\"\",E54=\"\",C54=E54),\"\",IF(C54>E54,C53,E53))","v":""},null,{"$f":"IF(OR(I54=\"\",K54=\"\",I54=K54),\"\",IF(I54>K54,I53,K53))","v":""},null,null,null,null,null,null,null,null,null,{"$f":"IF(OR(O54=\"\",Q54=\"\",O54=Q54),\"\",IF(O54>Q54,O53,Q53))","v":""},null,{"$f":"IF(OR(U54=\"\",W54=\"\",U54=W54),\"\",IF(U54>W54,U53,W53))","v":""}]
[]
[null,null,null,null,null,"Sieger VF1",null,"Sieger VF2",null,null,null,null,null,null,null,null,null,"Sieger VF3",null,"Sieger VF4"]
[null,null,null,null,null,{"$f":"IF(AND(F62<>\"\",H62<>\"\",F62=H62),\"Unzulässiges Ergebnis\",\"\")","v":""},null,null,null,null,null,null,null,null,null,null,null,{"$f":"IF(AND(R62<>\"\",T62<>\"\",R62=T62),\"Unzulässiges Ergebnis\",\"\")","v":""}]
[]
[]
[]
[null,null,null,null,null,null,null,null,null,null,null,"Finale"]
[null,null,null,null,null,null,null,null,null,null,null,"London"]
[null,null,null,null,null,null,null,null,null,null,null,"2021-07-11",null,"21:00:00"]
[null,null,null,null,null,null,null,null,null,null,null,{"$f":"IF(OR(F62=\"\",H62=\"\",F62=H62),\"\",IF(F62>H62,F61,H61))","v":""},null,{"$f":"IF(OR(R62=\"\",T62=\"\",R62=T62),\"\",IF(R62>T62,R61,T61))","v":""}]
[]
[null,null,null,null,null,null,null,null,null,null,null,"Sieger HF1",null,"Sieger HF2"]
[null,null,null,null,null,null,null,null,null,null,null,{"$f":"IF(AND(L72<>\"\",N72<>\"\",L72=N72),\"Unzulässiges Ergebnis\",\"\")","v":""}]
[]
[]
[null,"Hermann Baum, Nov. 2020/Mai 2021",null,null,null,null,null,null,null,null,null,null,null,null,null,null,null,null,null,null,"http://em.2020.spielplan-excel.de/"]

{"sheet":"Fair-Play-Wertung","index":1,"n_rows":23,"n_cols":6,"rows_kept":23,"cut":false,"hidden":false,"merged":[[1,1,1,5],[2,1,2,5],[3,1,3,5],[22,1,22,5]]}
[]
[null,"Fair-Play-Wertung"]
[null,"Gelb = 1 Pkt.   Gelb/Rot = 3 Pkt.   Rot = 3 Pkt."]
[null,"Für jede Mannschaft die Summe der in den Gruppenspielen gesammelten Minuspunkte eintragen"]
[null,"Gruppe A","Minuspunkte",null,"Gruppe D","Minuspunkte"]
[null,{"$f":"'EM Spielplan'!B11","v":"Türkei"},0,null,{"$f":"'EM Spielplan'!K11","v":"England"},0]
[null,{"$f":"'EM Spielplan'!C11","v":"Italien"},0,null,{"$f":"'EM Spielplan'!L11","v":"Kroatien"},0]
[null,{"$f":"'EM Spielplan'!B15","v":"Wales"},0,null,{"$f":"'EM Spielplan'!K15","v":"Schottland"},0]
[null,{"$f":"'EM Spielplan'!C15","v":"Schweiz"},0,null,{"$f":"'EM Spielplan'!L15","v":"Tschechien"},0]
[]
[null,"Gruppe B","Minuspunkte",null,"Gruppe E","Minuspunkte"]
[null,{"$f":"'EM Spielplan'!E11","v":"Dänemark"},0,null,{"$f":"'EM Spielplan'!N11","v":"Polen"},0]
[null,{"$f":"'EM Spielplan'!F11","v":"Finnland"},0,null,{"$f":"'EM Spielplan'!O11","v":"Slowakei"},0]
[null,{"$f":"'EM Spielplan'!E15","v":"Belgien"},0,null,{"$f":"'EM Spielplan'!N15","v":"Spanien"},0]
[null,{"$f":"'EM Spielplan'!F15","v":"Russland"},0,null,{"$f":"'EM Spielplan'!O15","v":"Schweden"},0]
[]
[null,"Gruppe C","Minuspunkte",null,"Gruppe F","Minuspunkte"]
[null,{"$f":"'EM Spielplan'!H11","v":"Österreich"},0,null,{"$f":"'EM Spielplan'!Q11","v":"Ungarn"},0]
[null,{"$f":"'EM Spielplan'!I11","v":"Nordmazedon."},0,null,{"$f":"'EM Spielplan'!R11","v":"Portugal"},0]
[null,{"$f":"'EM Spielplan'!H15","v":"Niederlande"},0,null,{"$f":"'EM Spielplan'!Q15","v":"Frankreich"},0]
[null,{"$f":"'EM Spielplan'!I15","v":"Ukraine"},0,null,{"$f":"'EM Spielplan'!R15","v":"Deutschland"},0]
[]
[null,"Es genügt, nur für diejenigen Mannschaften diese Punkte einzutragen, für die die Fair-Play-Wertung herangezogen wird (siehe Gruppen mit rotem Punkt --> • ).\nAlternativ kann die Reihenfolge in der Schlusstabelle einer Gruppe auch manuell eingetragen werden."]

{"sheet":"UEFA-Rangliste","index":2,"n_rows":30,"n_cols":9,"rows_kept":30,"cut":false,"hidden":false,"merged":[[0,1,0,10],[1,1,1,10],[2,3,2,8],[4,4,4,7]]}
[null,"Schlussrangliste der European Qualifiers"]
[null,"Overall European Qualifiers Rankings\n"]
[null,null,null,"Diese Liste wird aus den Ergebnissen der Qualifikationsrunde zur EM in 2019 hergeleitet. Über die Rangfolge entscheiden die damalige Gruppenplatzierung, die erreichte Punktzahl, die Tordifferenz und weitere Kriterien, die hier nicht mehr erforderlich waren."]
[]
[null,null,null,null,"Stand: Dez. 2020"]
[null,null,null,"Rang","Land","Grp.-Platz","Punkte","Tordifferenz","EM-Gruppe"]
[null,null,null,1,"Belgien",1,24,24,"B"]
[null,null,null,2,"Italien",1,24,22,"A"]
[null,null,null,3,"England",1,21,31,"D"]
[null,null,null,4,"Deutschland",1,21,23,"F"]
[null,null,null,5,"Spanien",1,20,17,"E"]
[null,null,null,6,"Ukraine",1,20,13,"C"]
[null,null,null,7,"Frankreich",1,19,15,"F"]
[null,null,null,8,"Polen",1,19,8,"E"]
[null,null,null,9,"Schweiz",1,17,13,"A"]
[null,null,null,10,"Kroatien",1,17,10,"D"]
[null,null,null,11,"Niederlande",2,19,17,"C"]
[null,null,null,12,"Russland",2,18,11,"B"]
[null,null,null,13,"Portugal",2,17,16,"F"]
[null,null,null,14,"Türkei",2,17,7,"A"]
[null,null,null,15,"Dänemark",2,16,17,"B"]
[null,null,null,16,"Österreich",2,16,5,"C"]
[null,null,null,17,"Schweden",2,15,7,"E"]
[null,null,null,18,"Tschechien",2,15,2,"D"]
[null,null,null,19,"Wales",2,14,4,"A"]
[null,null,null,20,"Finnland",2,12,1,"B"]
[null,null,null,21,"Slowakei",3,13,2,"E"]
[null,null,null,22,"Schottland",3,9,-11,"D"]
[null,null,null,23,"Nordmazedon.",3,8,-5,"C"]
[null,null,null,24,"Ungarn",4,12,-3,"F"]

{"sheet":"Zuordnung Gruppendritte","index":3,"n_rows":22,"n_cols":7,"rows_kept":22,"cut":false,"hidden":false,"merged":[[3,2,3,6],[4,2,6,2],[1,2,1,6]]}
[]
[null,null,"Zuordnung der vier besten Gruppendritten im Achtelfinale"]
[]
[]
[null,null,"Wenn sich die Dritten aus den folgenden Gruppen qualifizieren:","spielt der 1. der Gruppe","spielt der 1. der Gruppe","spielt der 1. der Gruppe","spielt der 1. der Gruppe"]
[null,null,null,"B","C","E","F"]
[null,null,null,"gegen den 3. der Gruppe","gegen den 3. der Gruppe","gegen den 3. der Gruppe","gegen den 3. der Gruppe"]
[null,null,"A B C D","A","D","B","C"]
[null,null,"A B C E","A","E","B","C"]
[null,null,"A B C F","A","F","B","C"]
[null,null,"A B D E","D","E","A","B"]
[null,null,"A B D F","D","F","A","B"]
[null,null,"A B E F","E","F","B","A"]
[null,null,"A C D E","E","D","C","A"]
[null,null,"A C D F","F","D","C","A"]
[null,null,"A C E F","E","F","C","A"]
[null,null,"A D E F","E","F","D","A"]
[null,null,"B C D E","E","D","B","C"]
[null,null,"B C D F","F","D","C","B"]
[null,null,"B C E F","F","E","C","B"]
[null,null,"B D E F","F","E","D","B"]
[null,null,"C D E F","F","E","D","C"]